lending/lending_fUSD_20250318
["ID","MTS","AMOUNT","RATE_DAILY","PERIOD"]
[356320423,1742256017399,-162.94,9.71e-05,2]
[356320424,1742256017423,-500.0,9.953e-05,2]
[356320425,1742256017449,-300.0,9.998e-05,2]
[356320426,1742256017473,-150.0,9.998e-05,2]
[356320427,1742256017498,-8543.06,9.999e-05,2]
[356320428,1742256039229,770.94,8.219e-05,2]
[356320429,1742256230970,1000.0,9.08e-05,2]
[356320430,1742256332417,3811.84,8.901e-05,2]
[356320431,1742256339662,157.413,0.000104,3]
[356320432,1742256339727,157.413,0.0001072,4]
[356320434,1742256611880,250.0,9e-05,2]
[356320447,1742256631747,-420.7531681,9.699e-05,2]
[356320448,1742256631757,-147.42674068,9.744e-05,2]
[356320449,1742256631836,-2.57325932,9.744e-05,2]
[356320450,1742256631846,-150.0,9.764e-05,2]
[356320451,1742256631856,-563.80347468,9.769e-05,2]
[356320516,1742256637789,-1000.0,9.685e-05,2]
[356320517,1742256637799,-436.19652532,9.769e-05,2]
[356320518,1742256637810,-150.0,9.78e-05,2]
[356320519,1742256637819,-1000.0,9.781e-05,2]
[356320520,1742256637828,-176.15106505,9.781e-05,2]
[356320521,1742256637839,-150.0,9.811e-05,2]
[356320522,1742256637849,-418.302,9.819e-05,2]
[356320523,1742256637858,-1000.0,9.825e-05,2]
[356320524,1742256637866,-69.35040963,9.839e-05,2]
[356320525,1742256637878,-930.64959037,9.839e-05,2]
[356320526,1742256637888,-1000.0,9.841e-05,2]
[356320527,1742256637897,-398.62506659,9.841e-05,2]
[356320529,1742256637908,-150.0,9.843e-05,2]
[356320530,1742256637918,-300.0,9.853e-05,2]
[356320532,1742256637927,-1000.0,9.854e-05,2]
[356320535,1742256637936,-411.51429435,9.875e-05,2]
[356320536,1742256637946,-230.46115118,9.896e-05,2]
[356320539,1742256637956,-798.62506659,9.928e-05,2]
[356320540,1742256637965,-1000.0,9.941e-05,2]
[356320542,1742256637975,-150.0,9.941e-05,2]
[356320544,1742256637985,-201.37493341,9.953e-05,2]
[356320545,1742256637996,-151.7326439,9.993e-05,2]
[356320546,1742256638005,-291.4712093,9.993e-05,2]
[356320547,1742256638014,-181.30577845,9.998e-05,2]
[356320548,1742256638024,-3581.73017179,9.999e-05,2]
[356320550,1742256639773,-150.0,9.782e-05,2]
[356320551,1742256639784,-102.22630005,9.847e-05,2]
[356320684,1742256645336,157.41301,0.0001041,3]
[356320686,1742256699524,150.0,9.562e-05,7]
[356320688,1742256760072,151.031805,0.00022,120]
[356320689,1742257393728,732.39,8.219e-05,2]
[356320710,1742257789821,-500.0,0.00013699,13]
[356320711,1742257789844,-500.0,0.00013699,13]
[356320712,1742257789866,-206.0,0.00013699,13]
[356320713,1742257814593,-217.26921943,0.00015,20]
[356320719,1742257832174,-1000.0,9.699e-05,2]
[356320720,1742257832183,-250.0,9.699e-05,2]
[356320721,1742257832193,-150.0,9.699e-05,2]
[356320722,1742257832203,-315.5648761,9.699e-05,2]
[356320723,1742257832212,-151.059,9.819e-05,2]
[356320724,1742257832221,-197.33246286,9.828e-05,2]
[356320725,1742257832231,-151.72825163,9.828e-05,2]
[356320726,1742257832240,-47.77369995,9.847e-05,2]
[356320727,1742257832250,-1265.971,9.993e-05,2]
[356320728,1742257832259,-242.8926744,9.993e-05,2]
[356320729,1742257832269,-300.0,9.998e-05,2]
[356320730,1742257832278,-38088.33566936,9.998e-05,2]
[356320895,1742257837912,-91031.4804518,9.998e-05,2]
[356320896,1742257837955,-199792.9667646,9.998e-05,2]
[356320897,1742257837964,-584.0,9.999e-05,2]
[356320898,1742257837974,-491775.23671153,9.999e-05,2]
[356320899,1742257838012,-84564.54796132,9.999e-05,2]
[356320920,1742257840034,-281.67,9.999e-05,2]
[356320921,1742257840046,-6220.28099772,9.999e-05,2]
[356320922,1742257840057,-487.332,9.999e-05,2]
[356320923,1742257840141,-2364.04979187,9.999e-05,2]
[356320924,1742257840196,-1071.07945002,9.999e-05,2]
[356320925,1742257840208,-258517.47676284,9.999e-05,2]
[356320969,1742257846001,-150.0,9.754e-05,2]
[356320970,1742257846011,-527.0,9.999e-05,2]
[356320971,1742257846021,-365929.81072087,9.999e-05,2]
[356320972,1742257846057,-290020.3443367,9.999e-05,2]
[356321022,1742257948597,400.0,9.3e-05,3]
[356321023,1742257950698,900.0,9.4e-05,3]
[356321024,1742257952880,1300.0,9.5e-05,3]
[356321025,1742257954882,1800.0,9.6e-05,3]
[356321026,1742257956977,2300.0,9.7e-05,3]
[356321027,1742257959561,400.0,9.8e-05,3]
[356321028,1742257961171,400.0,9.9e-05,3]
[356321029,1742257963263,400.0,0.0001,3]
[356321030,1742257965357,400.0,0.000109,3]
[356321031,1742258295488,23900.0,9.417e-05,2]
[356321032,1742258309998,1347.41,9.379e-05,2]
[356321033,1742258395370,162.94,9.314e-05,2]
[356321034,1742258448607,770.97,8.219e-05,2]
[356321035,1742258453116,250.0,9e-05,2]
[356321036,1742258569737,1000.0,9.266e-05,2]
[356321037,1742258596369,240.14,9.258e-05,2]
[356321038,1742258804966,195.0,0.00022,120]
[356321039,1742258849446,195.0,0.000109,3]
[356321040,1742258876802,195.0,0.000109,3]
[356321041,1742258884171,169.99,9.165e-05,2]
[356321042,1742258892710,464.63,9.145e-05,2]
[356321043,1742258892933,464.63,9.169e-05,2]
[356321044,1742258893173,464.63,9.193e-05,2]
[356321045,1742258894067,464.63,9.217e-05,2]
[356321046,1742258894788,464.63,9.241e-05,2]
[356321047,1742258894876,464.63,9.265e-05,2]
[356321048,1742258895125,464.63,9.289e-05,2]
[356321049,1742258895318,464.63,9.313e-05,2]
[356321050,1742258895555,464.63,9.337e-05,2]
[356321051,1742258895785,464.63,9.361e-05,2]
[356321052,1742258896001,464.63,9.386e-05,2]
[356321053,1742258896406,464.63,9.41e-05,2]
[356321054,1742258896620,464.63,9.434e-05,2]
[356321055,1742258896838,464.63,9.458e-05,2]
[356321056,1742258897254,464.63,9.482e-05,2]
[356321057,1742258897475,464.63,9.506e-05,2]
[356321058,1742258897708,464.63,9.53e-05,2]
[356321059,1742258897940,464.63,9.554e-05,2]
[356321060,1742258925092,193.29,9.482e-05,2]
[356321061,1742258944112,150.0,9.562e-05,7]
[356321066,1742259032227,-464.63,9.578e-05,2]
[356321067,1742259032237,-250.0,9.59e-05,2]
[356321068,1742259032247,-464.63,9.602e-05,2]
[356321069,1742259032257,-300.03825854,9.615e-05,2]
[356321070,1742259032266,-1788.61191166,9.615e-05,2]
[356321071,1742259032278,-940.75584361,9.615e-05,2]
[356321072,1742259032290,-1069.63144556,9.615e-05,2]
[356321073,1742259032393,-203.90355717,9.615e-05,2]
[356321074,1742259032402,-201.01905715,9.615e-05,2]
[356321307,1742259037936,-48.98094285,9.615e-05,2]
[356321308,1742259037946,-236.6736571,9.699e-05,2]
[356321309,1742259037956,-1000.0,9.812e-05,2]
[356321310,1742259037966,-540.646,9.819e-05,2]
[356321311,1742259037976,-151.0,9.819e-05,2]
[356321312,1742259037985,-1114.0,9.819e-05,2]
[356321313,1742259037994,-2823.16,9.856e-05,2]
[356321314,1742259038004,-1838.93,9.856e-05,2]
[356321315,1742259038014,-150.0,9.89e-05,2]
[356321316,1742259038023,-313.8626,9.899e-05,2]
[356321317,1742259038033,-182.69,9.906e-05,2]
[356321318,1742259038043,-500.48399647,9.973e-05,2]
[356321319,1742259038053,-300.0,9.988e-05,2]
[356321320,1742259038063,-3054.92115271,9.989e-05,2]
[356321321,1742259038073,-725.53755388,9.989e-05,2]
[356321330,1742259040284,-274.46244612,9.989e-05,2]
[356321331,1742259040294,-195.0,9.99e-05,2]
[356321332,1742259040304,-195.0,9.99e-05,2]
[356321333,1742259040314,-150.0,9.997e-05,2]
[356321334,1742259040324,-181.30577845,9.998e-05,2]
[356321335,1742259040334,-151.15257369,9.998e-05,2]
[356321336,1742259040344,-1012.777,9.998e-05,2]
[356321337,1742259040355,-1339.92475141,9.998e-05,2]
[356321350,1742259046355,-2339.3675,9.998e-05,2]
[356321405,1742259128696,200.0,0.00012,10]
[356321407,1742259358247,-200.00654926,0.00012,5]
[356321409,1742259968696,732.42,8.219e-05,2]
[356321410,1742260146786,45645.0,9e-05,2]
[356321411,1742260168115,150.0,9.562e-05,7]
[356321414,1742260232377,-177.5052428,9.699e-05,2]
[356321415,1742260232387,-85.6298874,9.718e-05,2]
[356321416,1742260232434,-164.3701126,9.718e-05,2]
[356321417,1742260232443,-529.5208874,9.899e-05,2]
[356321418,1742260232454,-239.2746126,9.899e-05,2]
[356321419,1742260232463,-36.7253874,9.899e-05,2]
[356321420,1742260232492,-115.00286422,9.899e-05,2]
[356321421,1742260232502,-169.95,9.936e-05,2]
[356321422,1742260232511,-300.0,9.976e-05,2]
[356321423,1742260232521,-810.221,9.977e-05,2]
[356321424,1742260232529,-2670.3406417,9.977e-05,2]
[356321436,1742260238422,-5598.42967744,9.977e-05,2]
[356321437,1742260238432,-1947.30075705,9.99e-05,2]
[356321438,1742260238443,-44094.31078199,9.999e-05,2]
[356321439,1742260238454,-293.57998157,9.999e-05,2]
[356321440,1742260238465,-83868.7704,9.999e-05,2]
[356321444,1742260238822,433.23809859,9.356e-05,2]
[356321453,1742260240467,-562.459954,9.999e-05,2]
[356321481,1742260244332,-22845.75616,9.999e-05,2]
[356321482,1742260244343,-792.21058723,9.999e-05,2]
[356321483,1742260244355,-1428.34763,9.999e-05,2]
[356321484,1742260244366,-818.53146404,9.999e-05,2]
[356321517,1742260246317,-5261.2828725,9.999e-05,2]
[356321520,1742260246331,-4509.77459404,9.999e-05,2]
[356321522,1742260246341,-299.99,9.999e-05,2]
[356321524,1742260246350,-150.99,9.999e-05,2]
[356321526,1742260246359,-41.16636467,9.999e-05,2]
[356321530,1742260246429,-413.1264718,9.999e-05,2]
[356321579,1742260296100,250.0,9e-05,2]
[356321581,1742260503749,1055.063709,9.546e-05,2]
[356321582,1742260536633,-153.88,9.595e-05,2]
[356321583,1742260536665,-177.5052428,9.699e-05,2]
[356321584,1742260536696,-1031.228,9.819e-05,2]
[356321585,1742260536728,-643.0,9.819e-05,2]
[356321586,1742260536760,-153.88,9.835e-05,2]
[356321587,1742260536791,-150.0,9.898e-05,2]
[356321588,1742260536822,-539.0897,9.899e-05,2]
[356321589,1742260536852,-1802.8341144,9.899e-05,2]
[356321590,1742260536865,-153.88,9.899e-05,2]
[356321591,1742260536876,-177.5052428,9.899e-05,2]
[356321592,1742260536888,-365.7806428,9.899e-05,2]
[356321593,1742260536897,-665.4473572,9.899e-05,2]
[356321594,1742260536908,-643.0,9.899e-05,2]
[356321595,1742260536919,-153.88,9.899e-05,2]
[356321596,1742260536930,-150.0,9.899e-05,2]
[356321597,1742260536941,-539.0897,9.899e-05,2]
[356321598,1742260536952,-2500.0,9.899e-05,2]
[356321599,1742260616399,-177.5052429,9.699e-05,2]
[356321600,1742260616430,-3520.933,9.819e-05,2]
[356321601,1742260616460,-907.0,9.819e-05,2]
[356321602,1742260616491,-469.2507428,9.899e-05,2]
[356321603,1742260616510,-177.5052429,9.9e-05,2]
[356321604,1742260616521,-3520.933,9.9e-05,2]
[356321605,1742260616533,-907.0,9.9e-05,2]
[356321606,1742260616548,-469.2507428,9.9e-05,2]
[356321607,1742260616559,-29850.6220286,9.9e-05,2]
[356321609,1742260651734,829.79721531,9.356e-05,2]
[356321610,1742260664333,162.94,9.561e-05,2]
[356321611,1742260771012,-6489.13,9.591e-05,2]
[356321612,1742260771044,-218.8310781,9.699e-05,2]
[356321613,1742260771075,-181.664,9.899e-05,2]
[356321614,1742260771096,-6489.13,9.899e-05,2]
[356321615,1742260771108,-218.8310781,9.899e-05,2]
[356321616,1742260771119,-181.664,9.899e-05,2]
[356321617,1742260771131,-6220.7498438,9.899e-05,2]
[356321618,1742260787835,500.0,9.531e-05,2]
[356321619,1742260881390,175.87,9.55e-05,2]
[356321620,1742260908844,-164.1233086,9.699e-05,2]
[356321621,1742260908869,-686.829,9.819e-05,2]
[356321622,1742260908900,-1610.6112781,9.899e-05,2]
[356321623,1742260908926,-1149.856,9.899e-05,2]
[356321624,1742260908952,-184.60688969,9.899e-05,2]
[356321625,1742260909246,-20758.20473593,9.9e-05,2]
[356321626,1742260909277,-500.0,9.973e-05,2]
[356321627,1742260909304,-150.0,9.998e-05,2]
[356321628,1742260909333,-6795.76878768,9.999e-05,2]
[356321630,1742261169896,152.84,0.00016493,30]
[356321631,1742261193663,-1000.0,9.583e-05,2]
[356321632,1742261193685,-200.0,9.583e-05,2]
[356321633,1742261193708,-205.21,9.583e-05,2]
[356321634,1742261193732,-164.1233086,9.699e-05,2]
[356321635,1742261193757,-380.0,9.781e-05,2]
[356321636,1742261193780,-2916.39252175,9.89e-05,2]
[356321637,1742261193803,-150.0,9.898e-05,2]
[356321638,1742261193826,-43283.0099,9.899e-05,2]
[356321639,1742261193848,-366.741,9.899e-05,2]
[356321640,1742261193871,-3441.4077,9.899e-05,2]
[356321641,1742261193894,-185866.33744215,9.9e-05,2]
[356321642,1742261193932,-13627.93099207,9.981e-05,2]
[356321643,1742261193960,-20398.84713543,9.998e-05,2]
[356321644,1742261285103,209.33269334,9.5e-05,2]
[356321647,1742261288956,150.0,9.612e-05,7]
[356321648,1742261374199,2000.0,0.0001045,3]
[356321663,1742261432639,-644.88529691,9.603e-05,2]
[356321664,1742261432653,-3623.41470309,9.603e-05,2]
[356321665,1742261432662,-1453.11,9.617e-05,2]
[356321666,1742261432671,-164.1233087,9.699e-05,2]
[356321667,1742261432680,-1036.0,9.9e-05,2]
[356321668,1742261432689,-150.0,9.979e-05,2]
[356321669,1742261432698,-1524.55498821,9.98e-05,2]
[356321670,1742261432710,-4518.04882973,9.98e-05,2]
[356321671,1742261432731,-1488.61549495,9.98e-05,2]
[356321672,1742261432742,-5008.0021072,9.98e-05,2]
[356321673,1742261432752,-3600.54847844,9.98e-05,2]
[356321674,1742261432761,-2912.00085493,9.98e-05,2]
[356321675,1742261432771,-1889.72645244,9.98e-05,2]
[356321676,1742261432782,-1598.29896054,9.98e-05,2]
[356321677,1742261432792,-286.24606077,9.98e-05,2]
[356321678,1742261432804,-574.97125657,9.98e-05,2]
[356321679,1742261432814,-2104.53241457,9.98e-05,2]
[356321680,1742261432825,-2395.47089793,9.98e-05,2]
[356321681,1742261432837,-584.860001,9.98e-05,2]
[356321682,1742261432847,-637.44999998,9.98e-05,2]
[356321683,1742261432975,-24711.23191705,9.98e-05,2]
[356321684,1742261432984,-55693.30573864,9.999e-05,2]
[356321685,1742261432997,-6650.6765,9.999e-05,2]
[356321687,1742261433011,-7382.376725,9.999e-05,2]
[356321689,1742261433024,-6127.228,9.999e-05,2]
[356321692,1742261433037,-5695.5,9.999e-05,2]
[356322218,1742261438399,-200.0,9.612e-05,2]
[356322219,1742261438409,-195593.66472452,9.999e-05,2]
[356322220,1742261438418,-1520.88,9.999e-05,2]
[356322221,1742261438427,-9999.99,0.0001,2]
[356322222,1742261438437,-171.73,0.0001,2]
[356322223,1742261438446,-9999.99,0.0001,2]
[356322224,1742261438455,-684.0,0.0001,2]
[356322225,1742261438466,-32745.97487548,0.0001,2]
[356322226,1742261438477,-22381.18195457,0.0001,2]
[356322227,1742261438563,-177.96549012,0.0001,2]
[356322228,1742261438579,-291.56376288,0.0001,2]
[356322229,1742261438591,-306.36687907,0.0001,2]
[356322230,1742261438603,-1517.7894237,0.0001,2]
[356322231,1742261438614,-1194.86692613,0.0001,2]
[356322239,1742261440591,-327.606,0.0001,2]
[356322240,1742261440603,-309.39843087,0.0001,2]
[356322241,1742261440667,-2613.51323979,0.0001,2]
[356322242,1742261440875,-13589.74487976,0.0001,2]
[356322243,1742261440885,-37954.19799532,0.0001,2]
[356322293,1742261444642,-22742.59278,0.0001,2]
[356322304,1742261446771,-984.33505263,0.0001,2]
[356322305,1742261446783,-646.54942887,0.0001,2]
[356322308,1742261651527,158.49,9.557e-05,2]
[356322309,1742261692283,774.72,8.219e-05,2]
[356322310,1742261740658,273.64,9.167e-05,2]
[356322311,1742261809209,204.031805,0.00022,120]
[356322312,1742261966661,175.87,9.14e-05,2]
[356322313,1742262000382,216.9895019,0.00022,120]
[356322315,1742262046224,3209.296,0.00022,120]
[356322316,1742262069929,1000.0,9.096e-05,2]
[356322317,1742262137481,250.0,9e-05,2]
[356322318,1742262219619,23993.58,9.171e-05,2]
[356322319,1742262410351,1666.66666,0.0001045,3]
[356322320,1742262585821,364.29,9.035e-05,2]
[356322321,1742262630398,170.32,9e-05,2]
[356322326,1742262631690,-158.49,9.61e-05,2]
[356322327,1742262631700,-250.0,9.61e-05,2]
[356322328,1742262631711,-368.75,9.631e-05,2]
[356322329,1742262631722,-250.0,9.632e-05,2]
[356322330,1742262631732,-158.49,9.663e-05,2]
[356322331,1742262631743,-172.6723068,9.7e-05,2]
[356322332,1742262631754,-2206.05873599,9.7e-05,2]
[356322333,1742262631764,-158.49,9.716e-05,2]
[356322334,1742262631775,-77.72863486,9.769e-05,2]
[356322335,1742262631787,-80.76136514,9.769e-05,2]
[356322336,1742262631797,-158.49,9.822e-05,2]
[356322337,1742262631807,-150.098,9.849e-05,2]
[356322338,1742262631817,-92.79465068,9.849e-05,2]
[356322339,1742262631836,-84.25234932,9.849e-05,2]
[356322340,1742262631845,-20792.22,9.849e-05,2]
[356322341,1742262631855,-616.85,9.849e-05,2]
[356322342,1742262631866,-150.0,9.875e-05,2]
[356322343,1742262631875,-158.49,9.876e-05,2]
[356322344,1742262631885,-6327.14,9.876e-05,2]
[356322345,1742262631894,-150.99,9.876e-05,2]
[356322346,1742262631904,-256.0,9.876e-05,2]
[356322347,1742262631915,-1649.36850593,9.89e-05,2]
[356322348,1742262631925,-1128.8041614,9.899e-05,2]
[356322349,1742262631934,-27287.8662,9.9e-05,2]
[356322350,1742262631944,-1009.0,9.9e-05,2]
[356322351,1742262631954,-158.49,9.929e-05,2]
[356322352,1742262631964,-929.95,9.929e-05,2]
[356322353,1742262631973,-420.83926761,9.973e-05,2]
[356322354,1742262631983,-262.36446954,9.973e-05,2]
[356322355,1742262631992,-170.97909456,9.973e-05,2]
[356322356,1742262632002,-153.11058961,9.973e-05,2]
[356322357,1742262632012,-205.89870409,9.973e-05,2]
[356322358,1742262632021,-158.49,9.982e-05,2]
[356322359,1742262632031,-245.34138734,9.997e-05,2]
[356322360,1742262632041,-1479.32,9.999e-05,2]
[356322361,1742262632052,-620.0,0.0001,2]
[356322363,1742262632062,-265498.04246611,0.0001,2]
[356322365,1742262632092,-267178.18804263,0.0001,2]
[356322366,1742262632102,-1757663.33697499,0.0001,2]
[356322367,1742262632114,-218133.95003572,0.0001,2]
[356322368,1742262632126,-112700.75265866,0.0001,2]
[356322369,1742262632138,-329195.03341431,0.0001,2]
[356322408,1742262637536,-497.12578567,9.999e-05,2]
[356322409,1742262637618,-2.87421433,9.999e-05,2]
[356322410,1742262637628,-500.0,9.999e-05,2]
[356322411,1742262637637,-252.51692821,9.999e-05,2]
[356322412,1742262637647,-756.35000882,0.0001,2]
[356322413,1742262637659,-296.55712754,0.0001,2]
[356322414,1742262637671,-2314.71990699,0.0001,2]
[356322421,1742262639581,-558.0,0.0001,2]
[356322422,1742262639591,-53233.07,0.0001,2]
[356322423,1742262639603,-1357.14579025,0.0001,2]
[356322424,1742262639723,-2612.30408965,0.0001,2]
[356322425,1742262639780,922.93,9.098e-05,2]
[356322426,1742262639794,-1995.48288896,0.0001,2]
[356322427,1742262639806,-1620.23291051,0.0001,2]
[356322428,1742262639816,-984.64210489,0.0001,2]
[356322429,1742262640863,1500.0,0.00022,120]
[356322430,1742262641693,-286.93,0.0001,2]
[356322445,1742262643386,-104109.59739838,0.0001,2]
[356322446,1742262643398,-1971.20458168,0.0001,2]
[356322447,1742262643410,-1020.18591282,0.0001,2]
[356322448,1742262643422,-9119.90372885,0.0001,2]
[356322449,1742262643435,-2482.74812688,0.0001,2]
[356322450,1742262643447,-869.30755836,0.0001,2]
[356322451,1742262643459,-1759.35999998,0.0001,2]
[356322477,1742262645655,-1665.7,0.0001,2]
[356322479,1742262645667,-808.73082159,0.0001,2]
[356322494,1742262645816,-547.91698603,0.0001,2]
[356322495,1742262645828,-452.77499993,0.0001,2]
[356322496,1742262645840,-2814.67391329,0.0001,2]
[356322497,1742262645892,-695.90354994,0.0001,2]
[356322502,1742262861538,5000.0,0.00022,120]
[356322503,1742262871005,5000.0,0.00022,120]
[356322504,1742262899953,5000.0,0.00022,120]
[356322505,1742262910207,5000.0,0.00022,120]
[356322506,1742262926546,641.24,8.219e-05,2]
[356322507,1742262926573,94.74,8.219e-05,2]
[356322508,1742262948166,4000.0,0.00022,120]
[356322509,1742262970978,1728.0,0.00022,120]
[356322510,1742263117117,-1417.68,9.999e-05,2]
[356322511,1742263117139,-250.0,9.999e-05,2]
[356322512,1742263129986,247.0,9.999e-05,2]
[356322513,1742263176778,366.0,0.00022,120]
[356322514,1742263196745,162.94,9.691e-05,2]
[356322515,1742263280295,-502.0,0.0001,2]
[356322516,1742263280315,-235.86210088,0.0001,2]
[356322517,1742263280341,-24184.51789912,0.0001,2]
[356322518,1742263369185,1423.32173,0.0001045,3]
[356322519,1742263416926,164.979,0.00018986,30]
[356322520,1742263430683,151.031805,0.00022,120]
[356322521,1742263675133,1423.32174,0.0001043,3]
[356322522,1742263675192,1423.32173,0.0001075,4]
[356322527,1742263831700,-1000.0,9.691e-05,2]
[356322528,1742263831711,-1577.7466,9.9e-05,2]
[356322529,1742263831720,-4973.79442528,9.9e-05,2]
[356322530,1742263831807,-26.20557472,9.9e-05,2]
[356322531,1742263831817,-1000.0,9.9e-05,2]
[356322532,1742263831827,-1379.8647,9.9e-05,2]
[356322533,1742263831836,-1358.61,9.999e-05,2]
[356322534,1742263831846,-150.0,9.999e-05,2]
[356322535,1742263831855,-29606.98592698,0.0001,2]
[356322536,1742263831864,-26249.30722152,0.0001,2]
[356322537,1742263831912,-903.68937219,0.0001,2]
[356322538,1742263831925,-94820.22230583,0.0001,2]
[356322539,1742263831967,-500.0,0.0001,2]
[356322540,1742263832026,-341.7,0.0001,2]
[356322755,1742263837870,-299.25,0.0001,2]
[356322756,1742263839951,-474.66537523,0.0001,2]
[356322757,1742263840231,-2942.54781803,0.0001,2]
[356322788,1742263842946,-330.37025421,0.0001,2]
[356322789,1742263842999,-654.38106294,0.0001,2]
[356322802,1742263845713,-2407.7799108,0.0001,2]
[356322803,1742263845724,-2890.33831613,0.0001,2]
[356322805,1742263845818,-582.41761124,0.0001,2]
[356322806,1742263845872,-271.83,0.0001,2]
[356322807,1742263845884,-19936.13955785,0.0001,2]
[356322808,1742263845927,-1007.3814,0.0001,2]
[356322819,1742263846319,-950.83191993,0.0001,2]
[356322820,1742263926249,150.0,9.581e-05,7]
[356322822,1742263980205,1423.32173,0.0001059,3]
[356322823,1742263980251,1423.32174,0.0001043,3]
[356322824,1742263982157,250.0,9e-05,2]
[356322825,1742264066541,153.89,9.568e-05,2]
[356322826,1742264533218,237.35,8.961e-05,2]
[356322827,1742264533243,762.65,8.961e-05,2]
[356322828,1742264567566,742.73,8.219e-05,2]
[356322829,1742264763067,822.88705949,8e-05,2]
[356322859,1742265032148,-150.0,9.732e-05,2]
[356322860,1742265032158,-250.0,9.734e-05,2]
[356322861,1742265032168,-150.0,9.736e-05,2]
[356322862,1742265032178,-189.87465337,9.738e-05,2]
[356322863,1742265032188,-150.0,9.756e-05,2]
[356322864,1742265032198,-150.0,9.768e-05,2]
[356322865,1742265032207,-150.0,9.775e-05,2]
[356322866,1742265032218,-150.0,9.794e-05,2]
[356322867,1742265032228,-150.0,9.795e-05,2]
[356322868,1742265032238,-150.0,9.848e-05,2]
[356322869,1742265032247,-150.0,9.85e-05,2]
[356322870,1742265032258,-150.0,9.85e-05,2]
[356322871,1742265032268,-505.37720967,9.85e-05,2]
[356322872,1742265032278,-150.0,9.852e-05,2]
[356322875,1742265032290,-505.37720967,9.852e-05,2]
[356322876,1742265032300,-150.0,9.862e-05,2]
[356322877,1742265032310,-150.0,9.874e-05,2]
[356322878,1742265032320,-150.0,9.899e-05,2]
[356322879,1742265032329,-300.0,9.899e-05,2]
[356322880,1742265032339,-150.0,9.899e-05,2]
[356322881,1742265032348,-150.91,9.9e-05,2]
[356322882,1742265032358,-236.128,9.9e-05,2]
[356322883,1742265032368,-40337.11026543,9.9e-05,2]
[356322889,1742265032643,-26052.32163457,9.9e-05,2]
[356322891,1742265032653,-3689.3309,9.9e-05,2]
[356322893,1742265032662,-7636.3581,9.9e-05,2]
[356322895,1742265032672,-150.0,9.904e-05,2]
[356322897,1742265032681,-150.0,9.913e-05,2]
[356322899,1742265032691,-150.0,9.922e-05,2]
[356322901,1742265032700,-258.23644727,9.936e-05,2]
[356322916,1742265032820,-150.0,9.942e-05,2]
[356322918,1742265032838,-150.0,9.947e-05,2]
[356322920,1742265032849,-150.0,9.95e-05,2]
[356322922,1742265032858,-150.0,9.956e-05,2]
[356322924,1742265032868,-150.0,9.966e-05,2]
[356322926,1742265032878,-177.3394423,9.972e-05,2]
[356322928,1742265032888,-8865.0,9.973e-05,2]
[356322930,1742265032899,-30733.00053217,9.973e-05,2]
[356322933,1742265032912,-13224.99946783,9.973e-05,2]
[356322935,1742265032922,-507.15443276,9.973e-05,2]
[356322937,1742265032931,-501.02201484,9.973e-05,2]
[356322939,1742265032941,-1017.034,9.999e-05,2]
[356322941,1742265032953,-1322.83,9.999e-05,2]
[356322943,1742265032963,-19606.64972108,0.0001,2]
[356322945,1742265032973,-25302.18415142,0.0001,2]
[356322950,1742265033014,-2847.97717255,0.0001,2]
[356323012,1742265037834,-4024.61324106,0.0001,2]
[356323013,1742265037846,-170098.44134456,0.0001,2]
[356323014,1742265038048,-417.55221189,0.0001,2]
[356323016,1742265039990,-266.6244499,0.0001,2]
[356323017,1742265040097,-2609.13797413,0.0001,2]
[356323018,1742265040108,-512.8843749,0.0001,2]
[356323019,1742265040119,-7980.75359698,0.0001,2]
[356323020,1742265040150,-547.03466666,0.0001,2]
[356323021,1742265040207,-1597.99710519,0.0001,2]
[356323022,1742265040263,-691.13045541,0.0001,2]
[356323023,1742265040319,-1492.10948025,0.0001,2]
[356323024,1742265040373,-452.9945539,0.0001,2]
[356323025,1742265040430,-3553.97594792,0.0001,2]
[356323026,1742265040442,-346.90770526,0.0001,2]
[356323037,1742265043033,-921.2002,0.0001,2]
[356323038,1742265043086,-625.86868062,0.0001,2]